bitfinex/quotes_ETHUSD_20210701
["timestamp","ask_amount","ask_price","bid_price","bid_amount"]
[1625152201940,7.0331408,2125.5,2124.2,7.05807]
[1625152202288,6.7331408,2125.5,2124.2,7.05807]
[1625152202525,5.7331408,2125.5,2124.2,7.05807]
[1625152202630,3.52937,2126.0,2124.8,4.45786529]
[1625152202728,3.68662083,2126.3,2124.8,4.45786529]
[1625152202828,3.53662083,2126.3,2124.8,4.45786529]
[1625152203431,7.05627,2126.2,2124.8,4.45786529]
[1625152203877,0.00773713,2126.3,2124.8,4.45786529]
[1625152204928,9.40986,2126.0,2124.8,4.45786529]
[1625152205028,19.40986,2126.0,2124.8,0.00816529]
[1625152205397,19.38993928,2126.0,2124.8,0.00816529]
[1625152205497,0.02213264,2125.5,2124.8,0.00816529]
[1625152205796,4.63,2125.8,2124.8,0.00816529]
[1625152206199,7.05885,2125.4,2125.3,0.00795085]
[1625152207489,7.05885,2125.4,2125.3,8.5e-07]
[1625152207649,18.38775,2125.4,2125.3,8.5e-07]
[1625152207792,19.34695,2125.4,2125.3,8.5e-07]
[1625152207895,0.00599915,2125.2,2124.8,0.00816529]
[1625152207992,12.63067351,2125.4,2124.8,0.00816529]
[1625152208094,0.12,2125.1,2124.8,0.00816529]
[1625152208347,13.28440151,2125.6,2124.8,0.00816529]
[1625152208842,16.81433151,2125.6,2124.8,0.00816529]
[1625152209094,7.06093,2125.1,2124.8,0.00816529]
[1625152209248,10.34257351,2125.0,2124.8,0.00816529]
[1625152209596,11.98157351,2125.0,2124.8,0.00816529]
[1625152209895,1.98157351,2125.0,2124.8,0.00816529]
[1625152210897,5.51230351,2125.0,2124.8,0.00816529]
[1625152211102,27.81,2124.9,2124.8,0.00816529]
[1625152211200,34.87189,2124.9,2124.8,0.00816529]
[1625152211349,34.76189,2124.9,2124.8,0.00816529]
[1625152211505,7.06189,2124.9,2124.8,0.00816529]
[1625152212109,7.06189,2124.9,2124.8,5.29e-06]
[1625152212209,7.55446351,2124.9,2124.8,5.29e-06]
[1625152212309,9.98985037,2124.9,2124.8,5.29e-06]
[1625152212409,24.98985037,2124.9,2124.8,5.29e-06]
[1625152213059,26.69854969,2124.9,2124.8,5.29e-06]
[1625152213309,11.69854969,2124.9,2124.8,5.29e-06]
[1625152213858,26.69854969,2124.9,2124.8,5.29e-06]
[1625152214661,33.55151187,2124.9,2124.3,5.49e-06]
[1625152214766,3.5323212,2124.5,2124.3,5.49e-06]
[1625152214866,35.0,2124.4,2123.8,1.08e-05]
[1625152214966,10.0,2124.3,2123.8,1.08e-05]
[1625152215069,15.34257351,2124.2,2123.8,1.08e-05]
[1625152215157,39.43837351,2124.2,2123.8,1.08e-05]
[1625152215413,0.16,2124.1,2123.8,1.08e-05]
[1625152215514,10.16,2124.1,2123.8,1.08e-05]
[1625152215612,15.15,2124.0,2123.8,1.08e-05]
[1625152215712,17.5975021,2124.0,2123.8,1.08e-05]
[1625152215811,0.16,2123.9,2123.8,1.08e-05]
[1625152216047,0.31,2123.9,2123.8,1.08e-05]
[1625152216550,0.31,2123.9,2121.8,14.69418539]
[1625152216551,3.53368,2123.1,2121.8,14.69418539]
[1625152216652,7.06753,2122.6,2121.8,10.49418539]
[1625152216748,10.14173,2122.6,2121.8,9.49418539]
[1625152216899,5.95148883,2122.6,2121.5,7.06715]
[1625152217298,5.95148883,2122.6,2121.5,9.45833598]
[1625152217800,5.95148883,2122.6,2122.5,0.02214898]
[1625152221745,3.0742,2122.6,2122.5,0.02214898]
[1625152221892,0.00923915,2122.8,2122.5,0.02214898]
[1625152223058,0.00902507,2123.3,2122.6,24.95]
[1625152223153,0.00902507,2123.3,2122.5,0.02214898]
[1625152223849,7.06561,2123.2,2122.5,0.02214898]
[1625152223953,0.00902507,2123.3,2122.5,0.02214898]
[1625152225142,7.06631,2122.9,2122.5,0.02214898]
[1625152225688,10.5501596,2122.9,2122.5,0.02214898]
[1625152225888,7.3788496,2122.9,2122.5,0.02214898]
[1625152226188,0.06,2122.8,2122.5,0.02214898]
[1625152226290,10.60182,2122.7,2122.5,0.02214898]
[1625152226390,15.3141062,2122.7,2122.5,0.02214898]
[1625152227312,4.7123388,2122.6,2122.5,0.02214898]
[1625152227412,44.2429388,2122.6,2122.3,0.00923915]
[1625152227611,16.4929388,2122.6,2122.3,0.00923915]
[1625152231993,0.03266761,2122.5,2122.3,0.00923915]
[1625152232547,7.0681896,2122.2,2121.0,0.904346]
[1625152232696,7.06815,2121.8,2120.9,10.7142352]
[1625152232945,7.06815,2121.8,2121.0,2.30570339]
[1625152233144,2.87592822,2121.8,2121.0,2.30570339]
[1625152233545,2.87592822,2121.8,2121.0,1.80570339]
[1625152233644,2.87592822,2121.8,2121.0,2.74667019]
[1625152234941,2.87592822,2121.8,2121.0,0.9409668]
[1625152235044,6.41072342,2121.8,2121.0,0.9409668]
[1625152235858,9.94542342,2121.8,2121.0,0.9409668]
[1625152236585,9.94542342,2121.8,2120.9,6.179]
[1625152236733,15.41702342,2121.8,2120.9,6.179]
[1625152236933,15.41702342,2121.8,2120.9,7.10803517]
[1625152238235,12.62178255,2121.8,2120.9,7.10803517]
[1625152238332,11.23798255,2121.8,2120.9,7.10803517]
[1625152238548,10.26208255,2121.8,2120.9,7.10803517]
[1625152238658,7.15018255,2121.8,2120.9,7.10803517]
[1625152240886,7.15018255,2121.8,2120.9,6.179]
[1625152241541,7.15018255,2121.8,2120.9,8.53169773]
[1625152241542,2.87592822,2121.8,2120.9,8.53169773]
[1625152241644,2.87592822,2121.8,2121.0,0.23464846]
[1625152241755,9.45716086,2121.9,2121.0,3.50594846]
[1625152241756,0.03296086,2121.9,2121.0,3.50594846]
[1625152241843,0.03296086,2121.9,2121.0,4.61573534]
[1625152241939,0.03296086,2121.9,2121.1,4.77507912]
[1625152242042,0.03296086,2121.9,2121.2,0.29059267]
[1625152242145,0.03296086,2121.9,2121.2,0.45251562]
[1625152242242,0.03296086,2121.9,2121.2,0.44059267]
[1625152242594,7.06794,2121.6,2121.2,0.15]
[1625152242943,7.06794,2121.6,2121.1,4.77507912]
[1625152243264,2.87517027,2121.6,2121.1,4.67507912]
[1625152244167,2.87517027,2121.6,2121.1,4.62507912]
[1625152244324,2.87517027,2121.6,2120.9,8.06713852]
[1625152244325,2.87517027,2121.6,2120.9,6.179]
[1625152244424,2.87517027,2121.6,2120.6,0.00978084]
[1625152244425,9.88975027,2121.6,2120.6,0.00978084]
[1625152244526,3.53639,2121.3,2120.4,0.09793437]
[1625152244683,46.15575152,2121.5,2120.4,4.37e-06]
[1625152244684,3.46,2120.7,2120.4,4.37e-06]
[1625152244824,0.98257,2119.6,2119.1,6.89]
[1625152244924,4.01997,2119.6,2119.1,6.89]
[1625152245174,4.16997,2119.6,2119.1,6.89]
[1625152245399,7.07725,2119.4,2119.1,6.89]
[1625152245495,3.5391461,2119.3,2119.1,6.89]
[1625152245690,3.5991461,2119.3,2119.1,6.89]
[1625152245994,3.5991461,2119.3,2117.5,17.16]
[1625152246096,3.53979,2119.1,2117.5,17.16]
[1625152246194,7.67769,2119.1,2117.5,17.16]
[1625152246290,7.67769,2119.1,2117.5,18.93886327]
[1625152246399,9.43889,2118.9,2117.6,15.0]
[1625152246501,7.67769,2119.1,2117.6,16.67999528]
[1625152246502,0.15,2119.1,2117.6,16.67999528]
[1625152246595,11.79812,2119.4,2117.7,0.14]
[1625152246794,11.79812,2119.4,2117.8,0.2]
[1625152246898,11.79812,2119.4,2118.9,3.68674245]
[1625152246999,0.98257,2119.6,2118.9,3.68674245]
[1625152247593,8.05737,2119.6,2118.9,3.68674245]
[1625152248047,0.08,2119.5,2118.9,3.68674245]
[1625152248148,0.23,2119.5,2118.9,3.68674245]
[1625152248242,3.2874,2119.5,2118.9,3.68674245]
[1625152248441,0.04,2119.4,2118.9,3.68674245]
[1625152248696,0.15,2119.3,2118.9,3.68674245]
[1625152248995,7.07896,2119.2,2118.9,3.68674245]
[1625152249496,7.07896,2119.2,2118.9,9.86574245]
[1625152250148,0.12,2119.1,2118.9,9.86574245]
[1625152250653,7.07896,2119.2,2118.9,9.86574245]
[1625152250851,11.94612,2119.8,2118.9,9.86574245]
[1625152251949,7.07631,2119.5,2118.9,9.86574245]
[1625152252171,0.15,2119.4,2118.9,9.86574245]
[1625152252366,0.15,2119.4,2118.9,6.179]
[1625152252520,0.04,2119.3,2118.9,6.179]
[1625152252618,1.2026,2119.4,2118.9,6.179]
[1625152252715,0.15,2119.2,2118.9,6.179]
[1625152253467,3.53944,2119.6,2118.9,6.179]
[1625152253668,0.15,2119.5,2118.9,6.179]
[1625152253869,0.06,2119.4,2118.9,6.179]
[1625152254071,3.5999371,2119.4,2118.9,6.179]
[1625152254171,7.07903,2119.2,2118.9,6.179]
[1625152254337,10.15173,2119.2,2118.9,6.179]
[1625152254435,10.30173,2119.2,2118.9,6.179]
[1625152254685,0.12,2119.1,2118.9,6.179]
[1625152254785,3.66008,2119.1,2118.9,6.179]
[1625152255238,27.9,2119.0,2118.2,6.89]
[1625152255342,3.5406229,2118.9,2118.2,6.89]
[1625152255536,0.15,2118.8,2118.2,6.89]
[1625152256144,3.68979,2119.2,2118.2,10.5469]
[1625152256244,0.15,2119.2,2118.2,10.5469]
[1625152257201,7.07803,2118.9,2118.2,10.5469]
[1625152258253,11.79829,2119.7,2118.2,10.4969]
[1625152258349,11.94829,2119.7,2118.2,10.4969]
[1625152258503,11.94829,2119.7,2118.3,0.23487649]
[1625152258700,11.79829,2119.7,2118.3,0.23487649]
[1625152258818,0.01,2120.0,2118.3,2.14428043]
[1625152259009,0.01,2120.0,2118.4,1.88402411]
[1625152259107,0.01,2120.0,2118.5,0.34013699]
[1625152259259,0.01,2120.0,2118.5,0.35402592]
[1625152259963,7.07525,2119.8,2118.5,0.35402592]
[1625152260064,0.01,2120.0,2118.5,0.01388893]
[1625152260164,0.01,2120.0,2118.4,0.15034788]
[1625152260165,0.01,2120.0,2118.4,0.00034788]
[1625152260264,0.01,2120.0,2118.5,0.01092962]
[1625152260417,0.16,2120.0,2118.3,13.069]
[1625152260564,0.16,2119.9,2118.3,13.069]
[1625152260763,0.15,2119.8,2118.3,13.069]
[1625152261403,7.07798,2119.2,2118.3,13.069]
[1625152261605,9.43534,2119.8,2118.3,15.03840394]
[1625152261706,9.43534,2119.8,2118.4,0.0094069]
[1625152261806,9.43534,2119.8,2118.4,0.99511617]
[1625152261908,9.43534,2119.8,2118.4,0.98570927]
[1625152262059,0.01,2120.0,2118.4,16.00224641]
[1625152262208,0.01,2120.0,2118.5,4.12345471]
[1625152262456,0.01,2120.0,2118.5,4.28345471]
[1625152262556,0.01,2120.0,2118.7,0.19351871]
[1625152262652,0.01,2120.0,2118.7,0.21119798]
[1625152262807,0.01,2120.0,2119.2,47.81583052]
[1625152262906,0.01,2120.0,2119.2,52.57003052]
[1625152263007,0.01,2120.0,2119.3,0.02793788]
[1625152263411,0.01,2120.0,2119.1,1.2276]
[1625152264159,7.0851,2120.0,2119.1,1.2276]
[1625152264262,7.0851,2120.0,2118.5,0.17574006]
[1625152264513,7.0851,2120.0,2118.5,0.16357768]
[1625152264873,7.0851,2120.0,2118.5,0.01357768]
[1625152264967,7.0851,2120.0,2118.5,0.01256274]
[1625152265073,7.0851,2120.0,2118.3,13.08087853]
[1625152265172,0.15,2119.9,2118.3,13.08087853]
[1625152265267,0.01645155,2119.8,2118.3,13.08087853]
[1625152265421,0.19,2119.7,2118.3,13.069]
[1625152265594,25.19,2119.7,2118.3,13.069]
[1625152265798,0.08815567,2119.6,2118.3,13.069]
[1625152265942,0.31,2119.5,2118.3,13.069]
[1625152266141,0.02388301,2119.4,2118.3,13.069]
[1625152266342,0.15,2119.3,2118.3,13.069]
[1625152266976,0.15,2119.3,2118.3,6.179]
[1625152267226,7.0805,2118.9,2118.3,6.179]
[1625152267527,0.31,2118.8,2118.3,6.179]
[1625152267624,3.8632,2118.8,2118.3,6.179]
[1625152267725,3.8632,2118.8,2118.3,6.109789]
[1625152268226,0.06,2118.7,2118.3,6.109789]
[1625152268381,7.08285,2118.6,2117.7,6.89]
[1625152268556,7.24303366,2118.6,2117.0,10.9376]
[1625152268756,0.16,2118.5,2117.0,10.9376]
[1625152268860,0.04959009,2118.4,2117.0,10.9376]
[1625152268961,11.5798,2118.7,2117.0,10.9376]
[1625152269108,0.15,2118.6,2117.0,10.9376]
[1625152269205,0.06576548,2118.5,2117.0,10.9376]
[1625152269408,7.0821,2117.9,2117.0,10.9376]
[1625152269563,7.0821,2117.9,2116.8,17.16]
[1625152269955,0.15,2117.8,2116.8,17.16]
[1625152270062,0.15,2117.8,2116.4,10.2769]
[1625152270209,0.21113001,2117.8,2116.4,6.89]
[1625152270409,7.0847,2117.2,2116.4,6.89]
[1625152270846,0.08410383,2117.2,2116.4,6.89]
[1625152271002,5.33002343,2117.4,2116.5,27.75]
[1625152271198,5.33002343,2117.4,2116.4,6.89]
[1625152271453,7.08553,2117.0,2116.4,6.89]
[1625152272752,7.08553,2117.0,2116.4,13.069]
[1625152273080,0.15,2116.9,2116.4,12.919]
[1625152273187,0.21,2116.9,2116.4,12.919]
[1625152273578,2.37,2116.9,2116.4,12.919]
[1625152273784,7.08831,2116.7,2116.4,12.919]
[1625152273934,0.15,2116.6,2116.4,12.919]
[1625152274035,0.15,2116.6,2116.4,6.179]
[1625152274484,27.81,2116.5,2116.4,6.179]
[1625152274583,0.06,2116.5,2116.4,6.179]
[1625152274684,0.21,2116.5,2116.4,6.179]
[1625152274840,0.06615831,2116.6,2116.4,6.179]
[1625152274986,0.06615831,2116.6,2116.4,11.1863]
[1625152275183,0.01581681,2116.6,2116.4,11.1863]
[1625152275766,0.01581681,2116.6,2116.5,0.15]
[1625152275963,0.01581681,2116.6,2116.5,2.6107802]
[1625152276115,0.01,2118.0,2116.5,2.6107802]
[1625152276116,0.01,2118.0,2116.6,7.28196006]
[1625152276210,0.01,2118.0,2116.6,7.29303109]
[1625152276309,0.01,2118.0,2116.7,0.15]
[1625152276559,0.01,2118.0,2116.7,1.5319]
[1625152276659,0.01,2118.0,2116.8,0.03058028]
[1625152277316,7.09244,2118.0,2116.7,1.3819]
[1625152277585,7.09244,2118.0,2116.4,6.6920639]
[1625152277785,7.09244,2118.0,2116.4,6.179]
[1625152278034,7.09244,2118.0,2116.5,0.08]
[1625152278185,7.09244,2118.0,2116.4,8.48227557]
[1625152278286,7.04244,2118.0,2116.4,8.48227557]
[1625152278885,6.54244,2118.0,2116.4,8.48227557]
[1625152278991,6.54244,2118.0,2116.4,8.63227557]
[1625152279087,6.54244,2118.0,2116.5,0.06838899]
[1625152279183,6.54244,2118.0,2116.5,3.46998899]
[1625152279341,9.4452,2118.2,2116.7,7.08197]
[1625152279486,7.08174,2118.3,2116.7,7.14773633]
[1625152279808,7.11452915,2118.3,2116.7,9.4510119]
[1625152280003,0.03278915,2118.3,2116.7,9.4510119]
[1625152280631,0.03278915,2118.3,2116.7,9.4010119]
[1625152280730,0.03278915,2118.3,2116.7,0.06576633]
[1625152280879,0.03278915,2118.3,2116.6,0.04113794]
[1625152281033,0.14,2118.2,2116.6,6.94284552]
[1625152281139,0.29,2118.2,2116.6,6.89]
[1625152281335,0.15,2118.2,2116.6,6.90230015]
[1625152281431,0.15,2118.2,2116.6,6.89]
[1625152281533,20.0,2117.7,2116.6,6.89]
[1625152281634,7.08709,2117.2,2116.6,6.89]
[1625152281787,7.08709,2117.2,2116.4,6.179]
[1625152282962,9.44619,2117.6,2116.4,13.069]
[1625152283061,9.44619,2117.6,2116.4,17.9279]
[1625152283361,9.44619,2117.6,2116.5,0.03193919]
[1625152283454,9.44619,2117.6,2116.4,17.9279]
[1625152283760,0.08,2117.5,2116.4,17.9279]
[1625152283959,7.08553,2117.3,2116.4,11.0379]
[1625152284115,7.08553,2117.3,2116.4,6.179]
[1625152284319,7.23553,2117.3,2116.4,6.179]
[1625152284515,0.16,2117.2,2116.4,6.179]
[1625152284718,5.0626,2117.2,2116.4,6.179]
[1625152284914,4.9026,2117.2,2116.4,6.179]
[1625152285117,4.93559578,2117.2,2116.4,6.179]
[1625152285667,7.08795,2116.8,2116.4,6.179]
[1625152285919,9.4506,2116.9,2116.4,6.179]
[1625152285920,0.16,2116.7,2116.4,6.179]
[1625152286166,9.4506,2116.9,2116.5,15.7]
[1625152286269,0.03299578,2117.2,2116.5,0.5130639]
[1625152286806,7.08702,2117.1,2116.5,0.5130639]
[1625152287404,7.08702,2117.1,2116.4,9.4587]
[1625152288511,7.08702,2117.1,2116.4,7.6967]
[1625152288608,7.08702,2117.1,2116.4,6.179]
[1625152289026,7.08702,2117.1,2116.4,13.069]
[1625152289428,7.08702,2117.1,2116.4,6.129]
[1625152289429,15.0,2117.0,2116.4,6.129]
[1625152289581,0.34257351,2117.0,2116.4,6.129]
[1625152290683,7.08953,2116.7,2116.4,6.129]
[1625152292770,15.34257351,2116.6,2116.4,6.129]
[1625152292972,34.8406,2116.5,2115.6,0.5130639]
[1625152293072,0.13333766,2116.4,2115.5,6.89]
[1625152293467,0.34257351,2116.6,2115.5,6.89]
[1625152294167,7.0905,2116.0,2115.5,6.89]
[1625152294418,7.0905,2116.0,2115.5,13.069]
[1625152294517,12.06,2116.0,2115.5,13.019]
[1625152295065,12.06,2116.0,2115.5,6.179]
[1625152295883,4.9695,2116.0,2115.5,6.179]
[1625152296035,0.15,2116.7,2115.6,0.06]
[1625152296182,7.64586,2117.0,2115.6,0.06]
[1625152296183,7.6446703,2117.0,2115.6,0.06]
[1625152296382,7.6446703,2117.0,2115.5,11.4325]
[1625152296481,7.0883,2116.2,2115.5,11.4325]
[1625152297084,7.0883,2116.2,2115.5,18.3225]
[1625152297189,7.6446703,2117.0,2115.5,18.3225]
[1625152297190,4.1,2117.0,2115.5,18.3225]
[1625152297287,2.17499578,2117.2,2115.6,0.18712713]
[1625152297437,0.03299578,2117.2,2116.7,0.9032]
[1625152297590,0.03299578,2117.2,2116.7,4.1748]
[1625152297833,11.80895,2118.2,2116.7,4.1748]
[1625152297929,11.80709,2118.7,2116.7,4.19419487]
[1625152298075,11.80709,2118.7,2116.8,0.47317587]
[1625152298274,11.80709,2118.7,2116.8,0.27317587]
[1625152298483,11.80709,2118.7,2116.8,3.81404587]
[1625152298584,20.0,2118.4,2116.7,4.19419487]
[1625152298733,7.08424,2117.7,2116.7,4.18684928]
[1625152298877,7.08424,2117.7,2116.7,0.8532]
[1625152299085,9.44367,2118.3,2116.7,0.8532]
[1625152299233,11.80709,2118.7,2116.8,5.10451606]
[1625152299734,9.44344,2118.3,2116.9,9.4428]
[1625152299880,9.44344,2118.3,2116.8,5.04451606]
[1625152299881,9.44344,2118.3,2116.8,4.9421]
[1625152300366,30.76363638,2118.3,2116.8,4.9421]
[1625152300464,21.32019638,2118.3,2116.8,4.9421]
[1625152300562,0.0103417,2118.2,2116.8,4.9421]
[1625152300765,7.08562,2117.5,2116.8,4.9421]
[1625152301264,11.11312,2117.5,2116.7,0.8532]
[1625152301467,15.0,2117.4,2116.7,0.8532]
[1625152301617,20.0,2117.3,2116.7,0.8532]
[1625152301713,15.0,2117.2,2116.7,0.8532]
[1625152301873,7.08823,2117.1,2116.7,0.8532]
[1625152302710,7.08823,2117.1,2115.5,13.069]
[1625152302966,0.04764987,2117.0,2115.5,13.069]
[1625152303066,9.45097,2117.2,2115.5,13.129]
[1625152303168,9.45097,2117.2,2115.6,0.12]
[1625152304322,9.45097,2117.2,2115.7,0.00896531]
[1625152304418,9.45097,2117.2,2115.6,0.12]
[1625152304564,9.45097,2117.2,2115.5,13.069]
[1625152304662,9.45097,2117.2,2115.7,0.12]
[1625152305217,9.40097,2117.2,2115.7,3.66305]
[1625152305413,9.40097,2117.2,2115.8,0.14]
[1625152305515,7.08659,2116.8,2115.8,0.14]
[1625152305965,4.28493707,2116.8,2115.8,0.14]
[1625152306067,27.75,2116.7,2115.6,0.5130639]
[1625152306215,9.44963,2116.9,2115.6,0.5130639]
[1625152306314,9.44963,2116.9,2115.6,0.4630639]
[1625152306817,9.44963,2116.9,2115.7,0.06]
[1625152306919,7.08719,2117.0,2115.7,0.06]
[1625152307272,7.08719,2117.0,2115.5,16.61217]
[1625152307625,10.8059,2117.9,2116.0,0.14415796]
[1625152307626,7.08537,2117.3,2116.0,0.14415796]
[1625152307772,7.08537,2117.3,2115.9,4.7399]
[1625152307969,7.08537,2117.3,2116.0,0.01576708]
[1625152308071,7.08537,2117.3,2115.9,4.7399]
[1625152308325,9.44704,2117.5,2115.9,4.7399]
[1625152308326,22.61686,2117.9,2116.2,3.54221]
[1625152308425,11.81096,2117.9,2116.3,0.11739879]
[1625152308578,31.8778,2118.2,2116.4,0.15]
[1625152308579,21.7527,2118.2,2116.4,0.15]
[1625152308726,7.08197,2118.2,2116.6,9.44325]
[1625152308877,5.0,2118.3,2116.9,3.54103]
[1625152309095,5.0,2118.3,2117.0,0.10885328]
[1625152309185,5.0,2118.3,2117.0,0.16885328]
[1625152309789,2.83114672,2117.0,2116.9,3.3559]
[1625152309894,5.0,2118.3,2117.1,3.54067]
[1625152309995,5.0,2118.3,2117.3,3.54052]
[1625152310743,4.9,2118.3,2116.9,4.72009]
[1625152310894,7.08391,2117.6,2116.5,9.4828987]
[1625152310995,7.08391,2117.6,2116.4,4.72142]
[1625152311344,22.08391,2117.6,2115.1,5.90352]
[1625152311490,4.03134686,2117.4,2115.0,11.0150639]
[1625152311644,19.03134686,2117.4,2115.0,10.502]
[1625152311836,0.17246555,2117.2,2115.0,10.502]
[1625152312038,0.15,2117.1,2115.0,14.04629]
[1625152312137,7.08903,2116.3,2115.0,14.04629]
[1625152312484,7.08903,2116.3,2115.0,10.502]
[1625152312740,7.08903,2116.3,2114.9,10.3743]
[1625152312987,7.08903,2116.3,2115.5,6.179]
[1625152313288,7.09111,2115.9,2115.5,6.179]
[1625152314017,7.09111,2115.9,2115.5,13.069]
[1625152316118,7.12292741,2115.9,2115.5,13.069]
[1625152316270,0.03181741,2115.9,2115.5,13.069]
[1625152317420,7.08893,2115.7,2115.5,13.069]
[1625152319058,2.88523664,2115.7,2115.5,13.069]
[1625152320010,2.88523664,2115.7,2115.5,6.179]
[1625152321008,21.53,2115.6,2115.5,6.179]
[1625152321107,0.08,2115.6,2115.5,6.179]
[1625152321207,0.1625046,2115.7,2115.6,6.4]
[1625152321359,0.1625046,2115.7,2115.5,6.179]
[1625152321466,0.19432406,2115.7,2115.5,6.179]
[1625152321711,9.45545,2115.6,2115.5,6.179]
[1625152324476,9.45545,2115.6,2115.0,6.89]
[1625152325966,11.45545,2115.6,2115.0,6.89]
[1625152326227,11.45545,2115.6,2115.0,11.89]
[1625152326322,0.03181946,2115.7,2115.0,11.89]
[1625152326471,0.03181946,2115.7,2115.5,4.0233]
[1625152327461,0.04866711,2115.7,2115.5,4.0233]
[1625152327570,0.04866711,2115.7,2115.5,3.8433]
[1625152328367,11.81466,2116.9,2115.5,3.8433]
[1625152328368,7.08659,2116.6,2115.5,3.8433]
[1625152328464,7.08659,2116.6,2116.0,3.54338]
[1625152329619,7.08659,2116.6,2116.0,9.72238]
[1625152330224,7.08659,2116.6,2116.0,9.67238]
[1625152331920,7.08562,2116.8,2116.0,9.67238]
[1625152332215,7.03562,2116.8,2116.0,9.67238]
[1625152332618,7.06742804,2116.8,2116.0,9.67238]
[1625152332826,0.03180804,2116.8,2116.0,6.179]
[1625152332919,7.08616,2116.7,2116.0,6.179]
[1625152333978,7.08616,2116.7,2116.0,9.72238]
[1625152334930,7.08616,2116.7,2116.1,0.08]
[1625152335128,7.08616,2116.7,2116.0,9.72238]
[1625152335330,7.03616,2116.7,2116.0,9.72238]
[1625152336630,0.03180804,2116.8,2116.0,9.72238]
[1625152336880,0.03180804,2116.8,2116.1,4.7813]
[1625152336979,0.03180804,2116.8,2116.1,9.7813]
[1625152337130,0.03180804,2116.8,2116.2,0.01020978]
[1625152337231,0.03180804,2116.8,2116.1,16.86523]
[1625152337386,13.81116,2117.5,2116.7,3.54178]
[1625152337637,13.81116,2117.5,2116.7,8.07098]
[1625152337738,2.0,2117.5,2116.7,8.07098]
[1625152337835,11.80843,2118.0,2116.7,8.07098]
[1625152337938,11.80843,2118.0,2116.8,0.10826237]
[1625152338030,11.80843,2118.0,2117.3,3.54088]
[1625152338129,11.80843,2118.0,2117.3,8.38078]
[1625152339172,7.08226,2117.8,2117.3,8.38078]
[1625152339271,4.9,2118.3,2117.3,8.38078]
[1625152339426,4.9,2118.3,2117.5,5.0]
[1625152340076,4.9,2118.3,2117.5,9.71977]
[1625152340173,4.9,2118.3,2117.6,7.07923]
[1625152340421,4.9,2118.3,2117.7,0.2]
[1625152340908,4.9,2118.3,2117.7,3.73924]
[1625152341014,4.9,2118.3,2117.8,18.1161]
[1625152341164,2.0,2119.2,2117.9,15.14608041]
[1625152341312,2.0,2119.2,2118.2,5.0081833]
[1625152341467,2.0,2119.2,2118.7,10.0]
[1625152341560,2.0,2119.2,2118.7,25.012695]
[1625152341759,0.01,2120.3,2118.7,25.012695]
[1625152341760,0.01,2120.3,2118.8,0.15]
[1625152341861,0.01,2120.3,2118.9,0.16900652]
[1625152342113,0.01,2120.3,2118.9,30.51900652]
[1625152342213,0.01,2120.3,2119.3,7.07276]
[1625152342319,0.01,2120.3,2119.4,22.07253]
[1625152342467,0.01,2120.3,2119.5,0.05197614]
[1625152342562,0.01,2120.3,2119.5,0.25197614]
[1625152342715,0.01,2120.3,2119.6,1.08479882]
[1625152342836,1.5305,2121.5,2119.8,7.06887]
[1625152342928,1.5305,2121.5,2120.0,5.0]
[1625152343080,1.5305,2121.5,2120.1,0.27982513]
[1625152343330,1.5305,2121.5,2120.2,1.08479882]
[1625152343432,0.4104261,2123.1,2120.7,10.60117]
[1625152343433,7.06716,2122.7,2120.7,10.60117]
[1625152343598,12.0676974,2123.0,2120.7,10.60117]
[1625152343599,12.0676974,2123.0,2120.8,0.21338096]
[1625152343600,0.01,2123.0,2120.8,0.21338096]
[1625152343828,0.01,2123.0,2120.9,0.35]
[1625152343934,13.91678907,2123.4,2121.1,27.75]
[1625152344031,13.91678907,2123.4,2121.2,0.34701723]
[1625152344180,13.91678907,2123.4,2121.2,0.38701723]
[1625152344280,13.91678907,2123.4,2121.2,0.34701723]
[1625152344379,13.91678907,2123.4,2121.2,3.68091723]
[1625152344482,7.06753,2122.5,2121.2,3.68091723]
[1625152344678,7.06753,2122.5,2121.2,3.3339]
[1625152344785,1.4036,2122.2,2121.2,3.3339]
[1625152344982,1.4036,2122.2,2121.7,2.5]
[1625152345523,27.75,2122.1,2120.6,0.00677914]
[1625152345623,27.75,2122.1,2120.7,0.0583262]
[1625152345827,1.8018,2121.7,2120.7,0.0583262]
[1625152345926,1.8018,2121.7,2120.6,0.00677914]
[1625152346086,1.8018,2121.7,2120.5,10.4573]
[1625152346087,7.0707,2121.5,2120.5,0.00677914]
[1625152346382,10.3701,2121.5,2120.5,0.00677914]
[1625152346728,10.2701,2121.5,2120.5,0.00677914]
[1625152346877,2.0,2121.0,2119.6,0.15858991]
[1625152346979,2.0,2121.0,2119.6,2.49088779]
[1625152347080,2.0,2121.0,2119.6,9.56118779]
[1625152347224,2.0,2121.0,2119.7,4.3692]
[1625152347372,2.0,2121.0,2119.8,0.15]
[1625152347823,3.98,2122.0,2119.8,0.15]
[1625152347925,3.98,2122.0,2119.8,0.1601607]
[1625152348025,3.98,2122.0,2119.9,0.32798671]
[1625152348274,3.98,2122.0,2120.0,0.15]
[1625152348375,3.98,2122.0,2120.1,0.0200081]
[1625152348674,3.98,2122.0,2120.2,0.04]
[1625152348777,1.9278,2121.9,2120.2,4.4102]
[1625152348979,1.9278,2121.9,2120.3,0.20956306]
[1625152349128,1.9278,2121.9,2120.4,0.12]
[1625152349327,1.9278,2121.9,2120.3,0.15]
[1625152349989,1.9278,2121.9,2120.2,5.58661069]
[1625152350138,1.9278,2121.9,2120.2,0.00621069]
[1625152350291,8.99713,2121.9,2120.2,0.00621069]
[1625152350390,8.99713,2121.9,2119.7,6.18576851]